[Event "Live Chess"]
[Site "Chess.com"]
[Date "2024.06.02"]
[Round "-"]
[White "grillage"]
[Black "e4evr"]
[Result "0-1"]
[WhiteElo "1859"]
[BlackElo "2268"]
[TimeControl "300"]
[EndTime "17:51:20 PDT"]
[Termination "e4evr won by resignation"]

1. d4 {[%clk 0:04:55.7]} 1... c5 {[%clk 0:04:59.1]} 2. d5 {[%clk 0:04:51.1]}
2... e5 {[%clk 0:04:57.8]} 3. Nc3 {[%clk 0:04:48.8]} 3... Bd6 {[%clk 0:04:57.3]}
4. e4 {[%clk 0:04:47.9]} 4... Bc7 {[%clk 0:04:56.3]} 5. d6 {[%clk 0:04:36.5]}
5... Ba5 {[%clk 0:04:55.2]} 6. Nf3 {[%clk 0:04:32.7]} 6... Nc6 {[%clk
0:04:54.1]} 7. Bb5 {[%clk 0:04:29.6]} 7... Qf6 {[%clk 0:04:49.9]} 8. O-O {[%clk
0:04:26.8]} 8... Bxc3 {[%clk 0:04:46.7]} 9. bxc3 {[%clk 0:04:24.9]} 9... h6
{[%clk 0:04:38.3]} 10. Be3 {[%clk 0:04:14.9]} 10... g5 {[%clk 0:04:32.7]} 11.
Bxc5 {[%clk 0:04:09.9]} 11... g4 {[%clk 0:04:31.9]} 12. Nd2 {[%clk 0:04:05.9]}
12... h5 {[%clk 0:04:30.4]} 13. Nc4 {[%clk 0:03:45]} 13... Nh6 {[%clk
0:04:28.2]} 14. Ne3 {[%clk 0:03:39.4]} 14... Qg6 {[%clk 0:04:21.3]} 15. Nd5
{[%clk 0:03:16.8]} 15... Kf8 {[%clk 0:04:19.2]} 16. Qe2 {[%clk 0:03:08]} 16...
h4 {[%clk 0:04:15.8]} 17. Bxc6 {[%clk 0:02:56.1]} 17... bxc6 {[%clk 0:04:14.1]}
18. Ne7 {[%clk 0:02:54.7]} 18... Qe6 {[%clk 0:04:08.8]} 19. Rad1 {[%clk
0:02:42.7]} 19... a5 {[%clk 0:04:06.3]} 20. Be3 {[%clk 0:02:40.7]} 20... Ba6
{[%clk 0:04:04]} 21. Qd2 {[%clk 0:02:28.3]} 21... Bxf1 {[%clk 0:04:02.3]} 22.
Bxh6+ {[%clk 0:02:26.1]} 22... Qxh6 {[%clk 0:03:58.1]} 23. Kxf1 {[%clk
0:02:17.4]} 23... Qxd2 {[%clk 0:03:56.6]} 24. Rxd2 {[%clk 0:02:16.3]} 24... Rb8
{[%clk 0:03:55.1]} 25. Rd1 {[%clk 0:01:49.4]} 25... Rb2 {[%clk 0:03:53.1]} 26.
Ke1 {[%clk 0:01:42.3]} 26... h3 {[%clk 0:03:48]} 27. gxh3 {[%clk 0:01:37.1]}
27... Rxh3 {[%clk 0:03:46.4]} 28. Kd2 {[%clk 0:01:30.9]} 28... Rxh2 {[%clk
0:03:45]} 29. Rg1 {[%clk 0:01:29.9]} 29... Rxf2+ {[%clk 0:03:42.8]} 30. Kd3
{[%clk 0:01:29]} 30... Rf4 {[%clk 0:03:39.3]} 31. Rh1 {[%clk 0:01:20.3]} 31...
g3 {[%clk 0:03:37.8]} 32. Rg1 {[%clk 0:01:19.2]} 32... Rg4 {[%clk 0:03:36.1]}
33. Ke3 {[%clk 0:01:17.4]} 33... g2 {[%clk 0:03:32.8]} 34. Kf3 {[%clk
0:01:16.1]} 34... Rg5 {[%clk 0:03:30.7]} 35. Rxg2 {[%clk 0:01:04.7]} 35... Rxg2
{[%clk 0:03:29.4]} 36. Kxg2 {[%clk 0:01:04.3]} 36... Rxc2+ {[%clk 0:03:29]} 37.
Kf3 {[%clk 0:01:03.4]} 37... Rxc3+ {[%clk 0:03:28.6]} 38. Kg4 {[%clk 0:01:01.8]}
38... Rd3 {[%clk 0:03:28]} 39. Nc8 {[%clk 0:00:58.1]} 39... c5 {[%clk 0:03:26]}
40. Kf5 {[%clk 0:00:57.1]} 40... c4 {[%clk 0:03:25.5]} 41. Kxe5 {[%clk
0:00:51.8]} 41... c3 {[%clk 0:03:24.8]} 42. Nb6 {[%clk 0:00:45]} 42... c2 {[%clk
0:03:23.9]} 43. Nxd7+ {[%clk 0:00:44.3]} 43... Kg7 {[%clk 0:03:23.2]} 44. Nc5
{[%clk 0:00:39.1]} 44... Rxd6 {[%clk 0:03:19.7]} 45. Nb3 {[%clk 0:00:35.9]}
45... Rd1 {[%clk 0:03:18.6]} 0-1

[Event "Live Chess"]
[Site "Chess.com"]
[Date "2024.06.02"]
[Round "-"]
[White "CheckThis4"]
[Black "RichardABates"]
[Result "0-1"]
[WhiteElo "2692"]
[BlackElo "2368"]
[TimeControl "300"]
[EndTime "17:53:23 PDT"]
[Termination "RichardABates won on time"]

1. d4 {[%clk 0:04:53.3]} 1... Nf6 {[%clk 0:04:58]} 2. Bg5 {[%clk 0:04:51.2]}
2... d5 {[%clk 0:04:49.5]} 3. e3 {[%clk 0:04:47.3]} 3... Ne4 {[%clk 0:04:46.7]}
4. Bf4 {[%clk 0:04:45.6]} 4... c5 {[%clk 0:04:45.4]} 5. Bd3 {[%clk 0:04:41.4]}
5... Nc6 {[%clk 0:04:43.1]} 6. Bxe4 {[%clk 0:04:39.2]} 6... dxe4 {[%clk
0:04:41.5]} 7. d5 {[%clk 0:04:38.8]} 7... e5 {[%clk 0:04:23.2]} 8. Bg3 {[%clk
0:04:17.2]} 8... Nb4 {[%clk 0:04:21.1]} 9. Nc3 {[%clk 0:04:14.2]} 9... f6 {[%clk
0:04:08.2]} 10. a3 {[%clk 0:03:57]} 10... Na6 {[%clk 0:04:05.7]} 11. Nxe4 {[%clk
0:03:53.9]} 11... c4 {[%clk 0:03:57.5]} 12. Ne2 {[%clk 0:03:48.7]} 12... Nc5
{[%clk 0:03:54.3]} 13. N2c3 {[%clk 0:03:41.1]} 13... Bf5 {[%clk 0:03:08]} 14.
Qf3 {[%clk 0:03:18.1]} 14... Qd7 {[%clk 0:03:03.2]} 15. h3 {[%clk 0:03:12.5]}
15... h5 {[%clk 0:02:58.6]} 16. O-O-O {[%clk 0:03:05.7]} 16... h4 {[%clk
0:02:37.1]} 17. Bh2 {[%clk 0:03:02.3]} 17... Nxe4 {[%clk 0:02:22.9]} 18. Nxe4
{[%clk 0:02:59.8]} 18... Bxe4 {[%clk 0:02:20.5]} 19. Qxe4 {[%clk 0:02:57.7]}
19... c3 {[%clk 0:02:19.4]} 20. Qg6+ {[%clk 0:02:41]} 20... Qf7 {[%clk
0:02:15.3]} 21. Qxf7+ {[%clk 0:02:34.4]} 21... Kxf7 {[%clk 0:02:13.9]} 22. f4
{[%clk 0:02:24.5]} 22... e4 {[%clk 0:02:05.2]} 23. f5 {[%clk 0:02:21.4]} 23...
Bc5 {[%clk 0:01:53.6]} 24. Bf4 {[%clk 0:02:13.2]} 24... Rh5 {[%clk 0:01:44.2]}
25. b4 {[%clk 0:02:11]} 25... Bb6 {[%clk 0:01:38.1]} 26. d6 {[%clk 0:01:56.1]}
26... Rxf5 {[%clk 0:01:27]} 27. d7 {[%clk 0:01:55.2]} 27... Rd8 {[%clk
0:01:22.6]} 28. Rd6 {[%clk 0:01:14.6]} 28... Bc7 {[%clk 0:01:19.7]} 29. Rd4
{[%clk 0:01:08.4]} 29... Bxf4 {[%clk 0:01:18]} 30. exf4 {[%clk 0:01:07.5]} 30...
Rxf4 {[%clk 0:01:16.5]} 31. Rhd1 {[%clk 0:01:03.4]} 31... Ke7 {[%clk 0:01:12.7]}
32. Kb1 {[%clk 0:01:01.7]} 32... f5 {[%clk 0:01:09.9]} 33. Ka2 {[%clk
0:00:59.9]} 33... Rf2 {[%clk 0:01:08.2]} 34. Kb3 {[%clk 0:00:58.8]} 34... Rxg2
{[%clk 0:01:07]} 35. Rd5 {[%clk 0:00:53.6]} 35... g6 {[%clk 0:01:00.3]} 36. Re5+
{[%clk 0:00:52.4]} 36... Kf7 {[%clk 0:00:59.1]} 37. Kxc3 {[%clk 0:00:45.9]}
37... Rg3+ {[%clk 0:00:56.1]} 38. Kc4 {[%clk 0:00:44.9]} 38... Rxh3 {[%clk
0:00:54.2]} 39. Rc5 {[%clk 0:00:28.9]} 39... Rxa3 {[%clk 0:00:51]} 40. Rc8
{[%clk 0:00:26.1]} 40... Ke7 {[%clk 0:00:49.6]} 41. Rxd8 {[%clk 0:00:21.1]}
41... Kxd8 {[%clk 0:00:47.9]} 42. Kc5 {[%clk 0:00:20.8]} 42... Ra6 {[%clk
0:00:42.3]} 43. b5 {[%clk 0:00:17.8]} 43... Rf6 {[%clk 0:00:39.9]} 44. Kd5
{[%clk 0:00:13.2]} 44... e3 {[%clk 0:00:35.3]} 45. Ke5 {[%clk 0:00:12.2]} 45...
Rf7 {[%clk 0:00:33.6]} 46. Ke6 {[%clk 0:00:11.6]} 46... Re7+ {[%clk 0:00:32.3]}
47. Kf6 {[%clk 0:00:09.9]} 47... Rxd7 {[%clk 0:00:31.2]} 48. Re1 {[%clk
0:00:08.7]} 48... f4 {[%clk 0:00:29.3]} 49. Kxg6 {[%clk 0:00:06.1]} 49... h3
{[%clk 0:00:27]} 50. Kf5 {[%clk 0:00:04.7]} 50... Rf7+ {[%clk 0:00:24.3]} 51.
Kg4 {[%clk 0:00:03.2]} 51... h2 {[%clk 0:00:22.1]} 52. Kf3 {[%clk 0:00:01.9]}
52... Rh7 {[%clk 0:00:19.8]} 53. Rh1 {[%clk 0:00:00.9]} 53... Ke7 {[%clk
0:00:18.2]} 54. c4 {[%clk 0:00:00.8]} 54... Kd6 {[%clk 0:00:16.9]} 55. c5+
{[%clk 0:00:00.7]} 55... Kxc5 {[%clk 0:00:15.8]} 56. Kxf4 {[%clk 0:00:00.6]}
56... e2 {[%clk 0:00:14.1]} 57. Ke3 {[%clk 0:00:00.5]} 57... e1=Q+ {[%clk
0:00:12.2]} 58. Rxe1 {[%clk 0:00:00.4]} 58... h1=Q {[%clk 0:00:09.4]} 59. Rc1+
{[%clk 0:00:00.3]} 59... Qxc1+ {[%clk 0:00:07.8]} 60. Kd3 {[%clk 0:00:00.2]}
60... Rh3+ {[%clk 0:00:06.3]} 61. Ke2 {[%clk 0:00:00.1]} 61... Qc2+ {[%clk
0:00:05.2]} 0-1

[Event "Live Chess"]
[Site "Chess.com"]
[Date "2024.06.02"]
[Round "-"]
[White "gobbles19"]
[Black "Plato_77"]
[Result "1-0"]
[WhiteElo "2259"]
[BlackElo "1301"]
[TimeControl "300"]
[EndTime "17:53:25 PDT"]
[Termination "gobbles19 won by resignation"]

1. e4 {[%clk 0:04:58.3]} 1... e6 {[%clk 0:04:57]} 2. d4 {[%clk 0:04:57]} 2... d5
{[%clk 0:04:56.1]} 3. Nc3 {[%clk 0:04:56.4]} 3... Bb4 {[%clk 0:04:53.8]} 4. e5
{[%clk 0:04:55.7]} 4... c5 {[%clk 0:04:52.1]} 5. Bd2 {[%clk 0:04:55.1]} 5...
cxd4 {[%clk 0:04:50.4]} 6. Nb5 {[%clk 0:04:54.7]} 6... Be7 {[%clk 0:04:42.2]} 7.
Qg4 {[%clk 0:04:49.3]} 7... g6 {[%clk 0:04:30.2]} 8. Nf3 {[%clk 0:04:42.5]} 8...
a6 {[%clk 0:04:20.5]} 9. Nbxd4 {[%clk 0:04:39.2]} 9... h5 {[%clk 0:04:12.3]} 10.
Qf4 {[%clk 0:04:32.4]} 10... Nc6 {[%clk 0:04:02.1]} 11. a3 {[%clk 0:04:22.9]}
11... Qb6 {[%clk 0:03:49.1]} 12. Bd3 {[%clk 0:04:14.4]} 12... Nh6 {[%clk
0:03:31.5]} 13. O-O {[%clk 0:04:10.7]} 13... Bd7 {[%clk 0:03:26.2]} 14. Be3
{[%clk 0:03:40.8]} 14... Nf5 {[%clk 0:02:54.3]} 15. Nxf5 {[%clk 0:03:37.5]}
15... Qxb2 {[%clk 0:02:44.2]} 16. Nxe7 {[%clk 0:03:34.4]} 16... Nxe7 {[%clk
0:02:38]} 17. Rfb1 {[%clk 0:03:31.6]} 17... Qc3 {[%clk 0:02:31]} 18. Bd4 {[%clk
0:03:16.9]} 18... Qc8 {[%clk 0:02:16.1]} 19. Qf6 {[%clk 0:03:14.2]} 19... O-O
{[%clk 0:02:04.6]} 20. Qxe7 {[%clk 0:03:11.8]} 1-0

[Event "Live Chess"]
[Site "Chess.com"]
[Date "2024.06.02"]
[Round "-"]
[White "CarmelJane"]
[Black "MagnersCarlsberg2870"]
[Result "0-1"]
[WhiteElo "2053"]
[BlackElo "1768"]
[TimeControl "300"]
[EndTime "17:53:35 PDT"]
[Termination "MagnersCarlsberg2870 won by resignation"]

1. e4 {[%clk 0:04:58.8]} 1... d6 {[%clk 0:04:56.9]} 2. d4 {[%clk 0:04:57.6]}
2... Nf6 {[%clk 0:04:56.1]} 3. Nc3 {[%clk 0:04:56.5]} 3... Nbd7 {[%clk 0:04:55]}
4. Nf3 {[%clk 0:04:53.8]} 4... e5 {[%clk 0:04:52.6]} 5. Bc4 {[%clk 0:04:53.3]}
5... h6 {[%clk 0:04:51.1]} 6. a4 {[%clk 0:04:52.1]} 6... Be7 {[%clk 0:04:48]} 7.
O-O {[%clk 0:04:51.2]} 7... g5 {[%clk 0:04:46.5]} 8. d5 {[%clk 0:04:47.8]} 8...
Nf8 {[%clk 0:04:40.2]} 9. a5 {[%clk 0:04:46.7]} 9... Ng6 {[%clk 0:04:37.9]} 10.
Bb5+ {[%clk 0:04:45.2]} 10... Bd7 {[%clk 0:04:36]} 11. Bxd7+ {[%clk 0:04:44.6]}
11... Qxd7 {[%clk 0:04:35.3]} 12. a6 {[%clk 0:04:44.2]} 12... b6 {[%clk
0:04:33.2]} 13. Qd3 {[%clk 0:04:41.8]} 13... Nf4 {[%clk 0:04:32]} 14. Bxf4
{[%clk 0:04:39.5]} 14... gxf4 {[%clk 0:04:30.9]} 15. Nb5 {[%clk 0:04:28.5]}
15... Rg8 {[%clk 0:04:29.2]} 16. Ne1 {[%clk 0:04:21.6]} 16... h5 {[%clk
0:04:19.7]} 17. Qc3 {[%clk 0:04:14]} 17... Qxb5 {[%clk 0:04:17.4]} 18. Qxc7
{[%clk 0:04:08.1]} 18... Nxe4 {[%clk 0:04:13.5]} 19. Qb7 {[%clk 0:03:50.3]}
19... Rd8 {[%clk 0:04:02]} 20. Qxa7 {[%clk 0:03:46.9]} 20... Nc5 {[%clk
0:03:53.1]} 21. Nd3 {[%clk 0:03:38.2]} 21... Nxd3 {[%clk 0:03:48.8]} 22. cxd3
{[%clk 0:03:36.9]} 22... Qxd3 {[%clk 0:03:46.8]} 23. Qxb6 {[%clk 0:03:35.6]}
23... Qh3 {[%clk 0:03:42.7]} 24. g3 {[%clk 0:03:05.2]} 24... f3 {[%clk
0:03:41.2]} 0-1

[Event "Live Chess"]
[Site "Chess.com"]
[Date "2024.06.02"]
[Round "-"]
[White "MaksymYurii"]
[Black "Duke_of_Bebington"]
[Result "0-1"]
[WhiteElo "970"]
[BlackElo "1617"]
[TimeControl "300"]
[EndTime "17:53:55 PDT"]
[Termination "Duke_of_Bebington won by resignation"]

1. e4 {[%clk 0:04:59.3]} 1... e5 {[%clk 0:04:57.8]} 2. Nf3 {[%clk 0:04:58.2]}
2... Nf6 {[%clk 0:04:56.7]} 3. Nc3 {[%clk 0:04:56.1]} 3... Nc6 {[%clk
0:04:55.8]} 4. Bb5 {[%clk 0:04:54.2]} 4... Nd4 {[%clk 0:04:54.4]} 5. Nxd4 {[%clk
0:04:44.9]} 5... exd4 {[%clk 0:04:52.2]} 6. Nd5 {[%clk 0:04:43.8]} 6... Nxd5
{[%clk 0:04:42.4]} 7. exd5 {[%clk 0:04:42.6]} 7... Be7 {[%clk 0:04:40.6]} 8. O-O
{[%clk 0:04:37.5]} 8... O-O {[%clk 0:04:40.1]} 9. Re1 {[%clk 0:04:36.1]} 9... c6
{[%clk 0:04:35.5]} 10. dxc6 {[%clk 0:04:30.2]} 10... dxc6 {[%clk 0:04:35.4]} 11.
Bc4 {[%clk 0:04:26.1]} 11... Bf5 {[%clk 0:04:23.2]} 12. d3 {[%clk 0:04:24.2]}
12... a5 {[%clk 0:04:20.5]} 13. a4 {[%clk 0:04:17.5]} 13... Qc7 {[%clk
0:04:10.2]} 14. b3 {[%clk 0:04:03.7]} 14... Rfe8 {[%clk 0:04:01.2]} 15. Ba3
{[%clk 0:03:58.1]} 15... Bxa3 {[%clk 0:03:56.7]} 16. Rxe8+ {[%clk 0:03:54.2]}
16... Rxe8 {[%clk 0:03:54.8]} 17. Rxa3 {[%clk 0:03:52.4]} 17... Qd6 {[%clk
0:03:44.4]} 18. Ra1 {[%clk 0:03:41]} 18... Qc5 {[%clk 0:03:39.8]} 19. Qd2 {[%clk
0:03:09.9]} 19... Kf8 {[%clk 0:03:13.1]} 20. h3 {[%clk 0:03:04.2]} 20... b6
{[%clk 0:03:05.3]} 21. Rb1 {[%clk 0:03:00.4]} 21... Qd6 {[%clk 0:03:00.6]} 22.
b4 {[%clk 0:02:56.6]} 22... axb4 {[%clk 0:02:54.9]} 23. Rxb4 {[%clk 0:02:42.2]}
23... c5 {[%clk 0:02:53.8]} 24. Rb5 {[%clk 0:02:36.6]} 24... Bd7 {[%clk
0:02:50.6]} 25. Rb1 {[%clk 0:02:28]} 25... Bxa4 {[%clk 0:02:48.8]} 26. Bb3
{[%clk 0:02:16.2]} 26... Bc6 {[%clk 0:02:45.2]} 27. Bc4 {[%clk 0:02:14.5]} 27...
Qg6 {[%clk 0:02:41.5]} 28. f3 {[%clk 0:02:06.3]} 28... Bxf3 {[%clk 0:02:36.5]}
29. Qf2 {[%clk 0:02:02]} 29... Ba8 {[%clk 0:02:13.8]} 30. Rf1 {[%clk 0:01:55.8]}
30... f6 {[%clk 0:02:08.4]} 31. Bb5 {[%clk 0:01:41.5]} 31... Re7 {[%clk
0:02:01.8]} 32. Ra1 {[%clk 0:01:10.6]} 32... Bd5 {[%clk 0:01:47.6]} 33. Bc4
{[%clk 0:01:09.5]} 33... Qf7 {[%clk 0:01:40.6]} 34. Bxd5 {[%clk 0:01:06.5]}
34... Qxd5 {[%clk 0:01:36.7]} 35. Ra8+ {[%clk 0:01:01.7]} 35... Qxa8 {[%clk
0:01:34.3]} 0-1

[Event "Live Chess"]
[Site "Chess.com"]
[Date "2024.06.02"]
[Round "-"]
[White "TheSmoulderingMaster"]
[Black "e4evr"]
[Result "0-1"]
[WhiteElo "1762"]
[BlackElo "2269"]
[TimeControl "300"]
[EndTime "17:54:05 PDT"]
[Termination "e4evr won by resignation"]

1. e4 {[%clk 0:04:56.2]} 1... d5 {[%clk 0:04:57]} 2. exd5 {[%clk 0:04:54.6]}
2... Nf6 {[%clk 0:04:56.5]} 3. Bb5+ {[%clk 0:04:52.5]} 3... Bd7 {[%clk
0:04:54.4]} 4. Bc4 {[%clk 0:04:50.5]} 4... b5 {[%clk 0:04:52.7]} 5. Bb3 {[%clk
0:04:47]} 5... Bg4 {[%clk 0:04:51.9]} 6. f3 {[%clk 0:04:44.8]} 6... Bc8 {[%clk
0:04:50.9]} 7. Ne2 {[%clk 0:04:43]} 7... Bb7 {[%clk 0:04:49.5]} 8. Nf4 {[%clk
0:04:40.5]} 8... Nxd5 {[%clk 0:04:47.7]} 9. Nxd5 {[%clk 0:04:37.7]} 9... Bxd5
{[%clk 0:04:47.4]} 10. O-O {[%clk 0:04:36.7]} 10... Bxb3 {[%clk 0:04:45.8]} 11.
axb3 {[%clk 0:04:35.9]} 11... e6 {[%clk 0:04:45.3]} 12. d4 {[%clk 0:04:35]}
12... Nc6 {[%clk 0:04:42.5]} 13. c3 {[%clk 0:04:32.1]} 13... Be7 {[%clk
0:04:40.9]} 14. Qd3 {[%clk 0:04:26.7]} 14... a6 {[%clk 0:04:39.7]} 15. Qe4
{[%clk 0:04:22.8]} 15... Qd5 {[%clk 0:04:37.6]} 16. Qg4 {[%clk 0:04:18.1]} 16...
O-O {[%clk 0:04:34.7]} 17. Bh6 {[%clk 0:04:14.5]} 17... Bf6 {[%clk 0:04:33.6]}
18. Nd2 {[%clk 0:04:08.8]} 18... Nxd4 {[%clk 0:04:29.7]} 19. cxd4 {[%clk
0:04:03.8]} 19... Qxd4+ {[%clk 0:04:29]} 20. Qxd4 {[%clk 0:04:01.2]} 20... Bxd4+
{[%clk 0:04:28.9]} 21. Kh1 {[%clk 0:03:58.3]} 21... gxh6 {[%clk 0:04:28.5]} 22.
Ne4 {[%clk 0:03:56.9]} 22... Bxb2 {[%clk 0:04:27.4]} 23. Rad1 {[%clk 0:03:54.1]}
23... Rfd8 {[%clk 0:04:25.5]} 24. Nc5 {[%clk 0:03:39.4]} 24... Rxd1 {[%clk
0:04:23.6]} 25. Rxd1 {[%clk 0:03:37.6]} 25... a5 {[%clk 0:04:23.2]} 26. g3
{[%clk 0:03:36.2]} 26... a4 {[%clk 0:04:22.3]} 27. bxa4 {[%clk 0:03:35]} 27...
bxa4 {[%clk 0:04:22.2]} 28. Nd3 {[%clk 0:03:19.5]} 28... a3 {[%clk 0:04:21.4]}
29. Nxb2 {[%clk 0:03:18.4]} 29... axb2 {[%clk 0:04:21.3]} 30. Rb1 {[%clk
0:03:16.9]} 30... Ra1 {[%clk 0:04:20.8]} 0-1

[Event "Live Chess"]
[Site "Chess.com"]
[Date "2024.06.02"]
[Round "-"]
[White "KeithArkell"]
[Black "ACM42"]
[Result "1-0"]
[WhiteElo "2429"]
[BlackElo "2176"]
[TimeControl "300"]
[EndTime "17:54:11 PDT"]
[Termination "KeithArkell won by resignation"]

1. d4 {[%clk 0:04:57.7]} 1... Nf6 {[%clk 0:04:58.9]} 2. Nf3 {[%clk 0:04:57]}
2... g6 {[%clk 0:04:58.1]} 3. c4 {[%clk 0:04:56.2]} 3... Bg7 {[%clk 0:04:57.4]}
4. g3 {[%clk 0:04:55.8]} 4... O-O {[%clk 0:04:56.4]} 5. Bg2 {[%clk 0:04:55.3]}
5... d6 {[%clk 0:04:56]} 6. Nc3 {[%clk 0:04:54.6]} 6... c5 {[%clk 0:04:55.4]} 7.
dxc5 {[%clk 0:04:53.7]} 7... dxc5 {[%clk 0:04:54.3]} 8. O-O {[%clk 0:04:53.4]}
8... Nc6 {[%clk 0:04:53.1]} 9. Bf4 {[%clk 0:04:52.6]} 9... Be6 {[%clk
0:04:51.3]} 10. Ne5 {[%clk 0:04:51.6]} 10... Nxe5 {[%clk 0:04:29.5]} 11. Bxe5
{[%clk 0:04:50.7]} 11... Qb6 {[%clk 0:04:19.3]} 12. Qb3 {[%clk 0:04:49]} 12...
Nd7 {[%clk 0:04:07.3]} 13. Bxg7 {[%clk 0:04:39.6]} 13... Kxg7 {[%clk 0:04:06.2]}
14. Rfd1 {[%clk 0:04:33.9]} 14... Rfd8 {[%clk 0:03:53.3]} 15. Nd5 {[%clk
0:04:15.9]} 15... Bxd5 {[%clk 0:03:12.8]} 16. Bxd5 {[%clk 0:04:14.4]} 16... Rab8
{[%clk 0:03:12]} 17. Bg2 {[%clk 0:04:01.7]} 17... Qc7 {[%clk 0:03:05.3]} 18.
Qc3+ {[%clk 0:04:00.5]} 18... Kg8 {[%clk 0:02:57.5]} 19. Rd2 {[%clk 0:03:57.5]}
19... Ne5 {[%clk 0:02:51.2]} 20. Rad1 {[%clk 0:03:56]} 20... Rxd2 {[%clk
0:02:29.8]} 21. Rxd2 {[%clk 0:03:55.9]} 21... Nc6 {[%clk 0:02:29.1]} 22. Bxc6
{[%clk 0:03:51.8]} 22... Qxc6 {[%clk 0:02:25.2]} 23. Qf3 {[%clk 0:03:48.4]}
23... Qc7 {[%clk 0:02:16.6]} 24. Qf4 {[%clk 0:03:47]} 24... Rc8 {[%clk
0:02:06.5]} 25. b3 {[%clk 0:03:45]} 25... Qb6 {[%clk 0:01:44.6]} 26. Rd7 {[%clk
0:03:42.4]} 26... Qe6 {[%clk 0:01:31.8]} 27. Rxb7 {[%clk 0:03:37.4]} 27... Qxe2
{[%clk 0:01:30.2]} 28. Qe3 {[%clk 0:03:18]} 28... Qd1+ {[%clk 0:01:25.5]} 29.
Kg2 {[%clk 0:03:16.7]} 29... e6 {[%clk 0:01:22.5]} 30. Qf3 {[%clk 0:03:12.8]}
30... Qxf3+ {[%clk 0:01:19.6]} 31. Kxf3 {[%clk 0:03:12.7]} 31... a6 {[%clk
0:01:07.6]} 32. Rb6 {[%clk 0:03:10.4]} 32... e5 {[%clk 0:00:56.6]} 33. Rxa6
{[%clk 0:03:08.8]} 33... f5 {[%clk 0:00:53.7]} 34. Ra7 {[%clk 0:03:07.8]} 34...
h6 {[%clk 0:00:44.7]} 35. g4 {[%clk 0:03:03.9]} 35... Rd8 {[%clk 0:00:41.5]} 36.
gxf5 {[%clk 0:03:02.6]} 36... gxf5 {[%clk 0:00:40.3]} 37. Re7 {[%clk 0:02:58.4]}
37... e4+ {[%clk 0:00:36.2]} 38. Ke2 {[%clk 0:02:57.5]} 38... Ra8 {[%clk
0:00:27.1]} 39. Re5 {[%clk 0:02:55.3]} 39... Rxa2+ {[%clk 0:00:26.1]} 40. Ke3
{[%clk 0:02:54.7]} 40... Rb2 {[%clk 0:00:24.3]} 41. Rxf5 {[%clk 0:02:53.7]}
41... Rxb3+ {[%clk 0:00:23.4]} 42. Kxe4 {[%clk 0:02:53.2]} 42... Rb2 {[%clk
0:00:21.7]} 43. Ke3 {[%clk 0:02:44]} 43... Rb3+ {[%clk 0:00:19.1]} 44. Ke2
{[%clk 0:02:42.9]} 44... Rb2+ {[%clk 0:00:17.4]} 45. Kf1 {[%clk 0:02:41.1]}
45... Rb1+ {[%clk 0:00:15.9]} 46. Kg2 {[%clk 0:02:40.4]} 46... Kg7 {[%clk
0:00:13.6]} 47. Rxc5 {[%clk 0:02:39.3]} 47... Rc1 {[%clk 0:00:12.4]} 48. h4
{[%clk 0:02:38.2]} 48... Kf6 {[%clk 0:00:11.1]} 49. Rc6+ {[%clk 0:02:37.2]}
49... Kf5 {[%clk 0:00:10.5]} 50. Kg3 {[%clk 0:02:35.7]} 50... Rc3+ {[%clk
0:00:09.2]} 51. f3 {[%clk 0:02:35.3]} 51... Rc1 {[%clk 0:00:08]} 52. c5 {[%clk
0:02:33.9]} 52... Rg1+ {[%clk 0:00:05.7]} 53. Kh2 {[%clk 0:02:33.1]} 53... Rc1
{[%clk 0:00:04.6]} 54. Rxh6 {[%clk 0:02:31.6]} 54... Rxc5 {[%clk 0:00:03.7]} 55.
Rh5+ {[%clk 0:02:31.1]} 1-0

[Event "Live Chess"]
[Site "Chess.com"]
[Date "2024.06.02"]
[Round "-"]
[White "Plato_77"]
[Black "CheckThis4"]
[Result "0-1"]
[WhiteElo "1301"]
[BlackElo "2692"]
[TimeControl "300"]
[EndTime "17:54:45 PDT"]
[Termination "CheckThis4 won by resignation"]

1. d4 {[%clk 0:04:55.7]} 1... Nf6 {[%clk 0:04:58.5]} 2. Bf4 {[%clk 0:04:52.4]}
2... c5 {[%clk 0:04:56.5]} 3. d5 {[%clk 0:04:48.5]} 3... Qb6 {[%clk 0:04:51.6]}
4. Qc1 {[%clk 0:04:45.4]} 4... Nxd5 {[%clk 0:04:49.3]} 5. Bg3 {[%clk 0:04:42.9]}
5... d6 {[%clk 0:04:43.6]} 6. e4 {[%clk 0:04:40.7]} 6... Nf6 {[%clk 0:04:42.7]}
7. Nc3 {[%clk 0:04:37.7]} 7... Nc6 {[%clk 0:04:40.4]} 8. Bc4 {[%clk 0:04:31.6]}
8... Qb4 {[%clk 0:04:33.2]} 9. Ne2 {[%clk 0:04:28.5]} 9... Qxc4 {[%clk
0:04:32.1]} 10. O-O {[%clk 0:04:22.2]} 10... Nd4 {[%clk 0:04:30.8]} 0-1